bitfinex/quotes_SOLUSD_20250106
["timestamp","ask_amount","ask_price","bid_price","bid_amount"]
[1736184986319,2.14,219.18,219.15,13.72378869]
[1736184986625,2.14,219.18,219.1,1.5447]
[1736184986626,2.14,219.18,219.16,13.72378869]
[1736184987129,1.6015,219.23,219.17,13.72378869]
[1736184987289,1.6015,219.23,219.21,13.72378869]
[1736184987290,2.14,219.23,219.21,13.72378869]
[1736184988246,2.14,219.23,219.2,13.72378869]
[1736184988438,2.14,219.23,219.21,13.72378869]
[1736184988725,15.86378869,219.23,219.17,13.72378869]
[1736184988906,13.72378869,219.22,219.15,13.72378869]
[1736184989521,13.72378869,219.19,219.13,13.72378869]
[1736184989723,13.72378869,219.18,219.12,13.72378869]
[1736184990019,0.12549,219.17,219.12,13.72378869]
[1736184990218,13.84927869,219.17,219.11,13.72378869]
[1736184990628,0.12549,219.15,219.1,13.72378869]
[1736184990825,0.12549,219.15,219.09,13.72378869]
[1736184990826,13.84927869,219.15,219.09,13.72378869]
[1736184991134,15.98927869,219.15,219.09,13.72378869]
[1736184991632,0.12549,219.13,219.07,13.72378869]
[1736184991827,0.12549,219.13,219.08,13.72378869]
[1736184992321,0.12549,219.13,219.07,13.72378869]
[1736184992546,0.12549,219.13,219.08,13.72378869]
[1736184993033,0.12549,219.14,219.09,13.72378869]
[1736184993216,0.12549,219.14,219.1,13.72378869]
[1736184993947,0.12549,219.14,219.09,13.72378869]
[1736184994278,13.84927869,219.14,219.07,13.72378869]
[1736184994447,13.84927869,219.14,219.08,13.72378869]
[1736184995423,13.84927869,219.14,219.07,13.72378869]
[1736184996409,13.72378869,219.13,219.06,13.72378869]
[1736184997505,23.776884,219.14,219.07,13.72378869]
[1736184997744,37.50067269,219.14,219.07,13.72378869]
[1736184999145,2.14,219.15,219.09,13.72378869]
[1736184999146,22.14,219.15,219.09,13.72378869]
[1736184999347,22.14,219.15,219.04,1.6555]
[1736184999348,22.14,219.15,219.1,13.72378869]
[1736184999646,2.14,219.15,219.1,13.72378869]
[1736185000146,2.14,219.15,219.11,13.72378869]
[1736185000316,22.14,219.15,219.11,13.72378869]
[1736185000516,22.14,219.15,219.08,13.72378869]
[1736185000517,0.25098,219.14,219.08,13.72378869]
[1736185000841,0.25098,219.14,219.06,13.72378869]
[1736185000842,0.12549,219.11,219.06,13.72378869]
[1736185002314,35.86378869,219.15,219.08,13.72378869]
[1736185002545,0.25098,219.14,219.09,13.72378869]
[1736185002935,0.12549,219.14,219.09,13.72378869]
[1736185003233,2.14,219.15,219.11,13.72378869]
[1736185004047,2.14,219.16,219.11,13.72378869]
[1736185004213,33.2844431,219.18,219.14,13.72378869]
[1736185004737,31.1444431,219.18,219.16,13.72378869]
[1736185005446,31.1444431,219.18,219.15,13.72378869]
[1736185006846,44.86823179,219.18,219.11,13.72378869]
[1736185007021,31.1444431,219.18,219.12,13.72378869]
[1736185007223,31.1444431,219.18,219.13,13.72378869]
[1736185007444,31.1444431,219.18,219.15,13.72378869]
[1736185008125,31.1444431,219.18,219.16,13.72378869]
[1736185011455,13.72378869,219.27,219.17,13.72378869]
[1736185011661,2.14,219.26,219.21,13.72378869]
[1736185011958,13.72378869,219.28,219.21,13.72378869]
[1736185012130,13.72378869,219.28,219.23,13.72378869]
[1736185012131,2.14,219.28,219.23,13.72378869]
[1736185012459,2.14,219.28,219.25,13.72378869]
[1736185012661,2.14,219.28,219.27,13.72378869]
[1736185012866,13.72378869,219.32,219.21,0.12549]
[1736185013041,2.14,219.32,219.27,13.72378869]
[1736185013744,0.12549,219.31,219.27,13.72378869]
[1736185013951,2.14,219.32,219.26,13.72378869]
[1736185014984,2.14,219.32,219.25,13.72378869]
[1736185014985,0.25098,219.31,219.25,13.72378869]
[1736185015884,0.12549,219.31,219.25,13.72378869]
[1736185016361,13.84927869,219.31,219.24,13.72378869]
[1736185016679,0.12549,219.31,219.25,13.72378869]
[1736185016859,0.12549,219.31,219.26,13.72378869]
[1736185018777,2.14,219.32,219.29,13.72378869]
[1736185019451,2.26549,219.34,219.29,13.72378869]
[1736185019650,13.72378869,219.38,219.32,13.72378869]
[1736185019872,13.72378869,219.38,219.25,11.4021]
[1736185019873,2.14,219.38,219.33,13.72378869]
[1736185020277,31.11244851,219.4,219.36,13.72378869]
[1736185020584,33.25244851,219.4,219.35,13.72378869]
[1736185021279,33.25244851,219.4,219.34,13.72378869]
[1736185021494,13.72378869,219.38,219.31,13.72378869]
[1736185021671,13.72378869,219.35,219.28,13.72378869]
[1736185022596,0.12549,219.34,219.28,13.72378869]
[1736185022802,0.12549,219.34,219.29,13.72378869]
[1736185023090,0.12549,219.35,219.3,13.72378869]
[1736185023294,0.12549,219.35,219.32,13.72378869]
[1736185023475,0.12549,219.35,219.31,13.72378869]
[1736185023795,0.12549,219.38,219.33,13.72378869]
[1736185024092,33.25244851,219.4,219.34,13.72378869]
[1736185024299,0.12549,219.39,219.35,13.72378869]
[1736185024967,0.12549,219.39,219.36,13.72378869]
[1736185025367,33.25244851,219.4,219.36,13.72378869]
[1736185025989,33.25244851,219.4,219.35,13.72378869]
[1736185026857,0.12549,219.39,219.34,13.72378869]
[1736185027063,13.84927869,219.39,219.32,13.72378869]
[1736185027263,0.12549,219.37,219.31,13.72378869]
[1736185027901,0.25098,219.38,219.32,13.72378869]
[1736185028973,0.25098,219.38,219.29,13.72378869]
[1736185028974,13.84927869,219.36,219.29,13.72378869]
[1736185029173,0.12549,219.36,219.3,13.72378869]
[1736185029679,13.84927869,219.35,219.29,13.72378869]
[1736185030093,13.84927869,219.35,219.28,13.72378869]
[1736185030905,19.98958869,219.34,219.27,13.72378869]
[1736185031401,13.72378869,219.33,219.26,13.72378869]
[1736185031768,19.98958869,219.34,219.27,13.72378869]
[1736185032201,6.2658,219.34,219.28,13.72378869]
[1736185033071,6.2658,219.34,219.27,13.72378869]
[1736185033072,19.98958869,219.34,219.27,13.72378869]
[1736185033733,0.12549,219.31,219.19,6.4125]
[1736185033894,0.12549,219.31,219.24,13.72378869]
[1736185033895,2.26549,219.3,219.24,13.72378869]
[1736185034084,2.26549,219.3,219.23,13.72378869]
[1736185034598,0.12549,219.29,219.23,13.72378869]
[1736185034803,13.84927869,219.29,219.23,13.72378869]
[1736185036008,0.12549,219.29,219.23,13.72378869]
[1736185037478,0.12549,219.29,219.25,13.72378869]
[1736185037995,0.12549,219.29,219.24,13.72378869]
[1736185039086,0.12549,219.29,219.19,11.4052]
[1736185039087,0.12549,219.29,219.25,13.72378869]
[1736185042806,0.12549,219.31,219.25,13.72378869]
[1736185043104,2.14,219.3,219.25,13.72378869]
[1736185043311,2.14,219.3,219.24,13.72378869]
[1736185046016,35.86378869,219.3,219.23,13.72378869]
[1736185046404,0.12549,219.28,219.22,13.72378869]
[1736185047083,0.12549,219.27,219.21,13.72378869]
[1736185047284,13.84927869,219.27,219.2,13.72378869]
[1736185047520,0.12549,219.25,219.2,13.72378869]
[1736185047687,13.84927869,219.25,219.18,13.72378869]
[1736185047891,13.84927869,219.25,219.15,11.4071]
[1736185048090,0.12549,219.25,219.19,13.72378869]
[1736185048903,0.12549,219.26,219.2,13.72378869]
[1736185049209,0.12549,219.26,219.15,11.4071]
[1736185049210,13.84927869,219.26,219.19,13.72378869]
[1736185049518,0.12549,219.24,219.18,13.72378869]
[1736185050019,23.776884,219.29,219.17,13.72378869]
[1736185050020,13.84927869,219.23,219.17,13.72378869]
[1736185050315,13.84927869,219.23,219.16,13.72378869]
[1736185050521,2.14,219.22,219.16,13.72378869]
[1736185051386,2.14,219.22,219.17,13.72378869]
[1736185052089,2.14,219.22,219.14,20.0]
[1736185052403,2.14,219.22,219.16,13.72378869]
[1736185052616,15.86378869,219.22,219.15,13.72378869]
[1736185053012,2.14,219.22,219.17,13.72378869]
[1736185054735,6.4987,219.26,219.21,13.72378869]
[1736185055039,2.14,219.28,219.22,13.72378869]
[1736185055220,0.12549,219.27,219.21,13.72378869]
[1736185055961,13.84927869,219.27,219.21,13.72378869]
[1736185057441,0.12549,219.27,219.21,13.72378869]
[1736185057642,6.3915,219.31,219.25,13.72378869]
[1736185057819,2.14,219.31,219.28,13.72378869]
[1736185058207,2.14,219.32,219.28,13.72378869]
[1736185058403,6.2539,219.36,219.3,13.72378869]
[1736185058624,2.14,219.35,219.31,13.72378869]
[1736185058909,0.12549,219.34,219.26,20.0]
[1736185059211,0.12549,219.34,219.3,13.72378869]
[1736185059411,0.12549,219.35,219.3,13.72378869]
[1736185059721,2.14,219.34,219.3,13.72378869]
[1736185059913,2.14,219.34,219.29,13.72378869]
[1736185060132,0.12549,219.33,219.28,13.72378869]
[1736185060343,0.12549,219.33,219.27,13.72378869]
[1736185060549,0.12549,219.31,219.27,13.72378869]
[1736185060958,2.14,219.32,219.29,13.72378869]
[1736185061123,2.14,219.32,219.3,13.72378869]
[1736185061337,2.14,219.32,219.31,13.72378869]
[1736185061628,2.14,219.32,219.3,13.72378869]
[1736185061824,2.14,219.32,219.29,13.72378869]
[1736185062161,2.14,219.32,219.28,13.72378869]
[1736185063255,0.12549,219.31,219.27,13.72378869]
[1736185064462,0.12549,219.31,219.28,13.72378869]
[1736185064855,0.12549,219.31,219.27,13.72378869]
[1736185066257,13.84927869,219.31,219.24,13.72378869]
[1736185066659,2.14,219.3,219.24,13.72378869]
[1736185067337,13.72378869,219.29,219.22,13.72378869]
[1736185067557,13.72378869,219.28,219.22,13.72378869]
[1736185068859,13.72378869,219.28,219.21,13.72378869]
[1736185069267,2.14,219.3,219.2,13.72378869]
[1736185069268,13.72378869,219.26,219.2,13.72378869]
[1736185069458,13.72378869,219.28,219.21,13.72378869]
[1736185070339,2.14,219.3,219.15,6.63709]
[1736185070340,2.14,219.3,219.24,13.72378869]
[1736185070764,0.25098,219.29,219.24,13.72378869]
[1736185070966,0.25098,219.29,219.19,11.4056]
[1736185071296,0.12549,219.29,219.24,13.72378869]
[1736185071581,0.12549,219.29,219.25,13.72378869]
[1736185071759,0.12549,219.29,219.19,11.4056]
[1736185071964,0.12549,219.29,219.24,13.72378869]
[1736185072742,13.72378869,219.28,219.21,13.72378869]
[1736185072941,0.12549,219.27,219.21,13.72378869]
[1736185073563,0.12549,219.28,219.22,13.72378869]
[1736185073779,0.25098,219.28,219.22,13.72378869]
[1736185074862,33.26666177,219.3,219.24,13.72378869]
[1736185075065,33.26666177,219.3,219.25,13.72378869]
[1736185077376,33.26666177,219.3,219.26,13.72378869]
[1736185078274,33.26666177,219.3,219.24,20.0]
[1736185078467,33.26666177,219.3,219.26,13.72378869]
[1736185080071,33.26666177,219.3,219.25,13.72378869]
[1736185080278,33.26666177,219.3,219.24,33.72378869]
[1736185080456,31.12666177,219.3,219.27,13.72378869]
[1736185080687,31.12666177,219.3,219.28,13.72378869]
[1736185080856,31.12666177,219.3,219.27,13.72378869]
[1736185081049,31.12666177,219.3,219.24,13.72378869]
[1736185081250,44.85045046,219.3,219.23,13.72378869]
[1736185081864,0.12549,219.29,219.22,13.72378869]
[1736185082071,0.12549,219.27,219.21,13.72378869]
[1736185083481,0.12549,219.27,219.2,13.72378869]
[1736185083482,0.12549,219.26,219.2,13.72378869]
[1736185083663,2.14,219.25,219.2,13.72378869]
[1736185084583,13.84927869,219.24,219.18,13.72378869]
[1736185084885,13.84927869,219.24,219.17,13.72378869]
[1736185085667,0.12549,219.24,219.19,13.72378869]
[1736185086880,0.12549,219.24,219.18,20.0]
[1736185086881,13.84927869,219.24,219.17,13.72378869]
[1736185087390,13.84927869,219.24,219.15,11.4073]
[1736185087585,0.25098,219.24,219.18,13.72378869]
[1736185087786,13.97476869,219.24,219.17,13.72378869]
[1736185088086,13.72378869,219.23,219.16,13.72378869]
[1736185088286,13.72378869,219.22,219.15,20.0]
[1736185088463,13.72378869,219.22,219.15,33.72378869]
[1736185088862,13.72378869,219.22,219.15,20.0]
[1736185089075,13.72378869,219.21,219.15,20.0]
[1736185090466,13.72378869,219.19,219.12,13.72378869]
[1736185091402,0.12549,219.17,219.11,13.72378869]
[1736185091577,2.26549,219.17,219.11,13.72378869]
[1736185091773,15.98927869,219.17,219.1,13.72378869]
[1736185091997,0.12549,219.15,219.07,1.5159]
[1736185092156,0.12549,219.14,219.08,13.72378869]
[1736185092363,0.12549,219.14,219.1,13.72378869]
[1736185092564,15.86378869,219.17,219.1,13.72378869]
[1736185092861,0.25098,219.16,219.1,13.72378869]
[1736185093068,13.97476869,219.16,219.09,13.72378869]
[1736185093371,0.25098,219.16,219.12,13.72378869]
[1736185093973,0.25098,219.16,219.07,20.0]
[1736185094291,0.12549,219.16,219.12,13.72378869]
[1736185095889,0.12549,219.16,219.11,13.72378869]
[1736185096982,0.12549,219.16,219.12,13.72378869]
[1736185097890,0.12549,219.16,219.11,13.72378869]
[1736185098698,0.12549,219.16,219.07,20.0]
[1736185098896,23.902374,219.16,219.1,13.72378869]
[1736185099190,8.80036852,219.15,219.07,8.80036852]
[1736185099562,8.80036852,219.14,219.07,8.80036852]
[1736185100573,8.80036852,219.12,219.05,8.80036852]
[1736185100977,35.184184,219.16,219.03,20.0]
[1736185101200,13.75678455,219.12,219.03,20.0]
[1736185101392,13.75678455,219.15,219.07,13.75678455]
[1736185101592,13.75678455,219.15,219.08,13.75678455]
[1736185101895,2.14,219.14,219.08,13.75678455]
[1736185102213,2.14,219.14,219.07,13.75678455]
[1736185102371,2.14,219.14,219.08,13.75678455]
[1736185103482,0.25098,219.13,219.07,13.75678455]
[1736185104075,0.25098,219.13,219.08,13.75678455]
[1736185104666,0.25098,219.13,219.07,13.75678455]
[1736185108698,0.25098,219.13,219.04,20.0]
[1736185108699,0.12549,219.13,219.08,13.75678455]
[1736185109074,2.14,219.14,219.1,13.75678455]
[1736185109926,20.02718455,219.18,219.11,13.75678455]
[1736185110080,2.14,219.17,219.12,13.75678455]
[1736185110282,2.14,219.17,219.13,13.75678455]
[1736185110587,2.14,219.17,219.11,13.75678455]
[1736185110981,1.6015,219.21,219.13,13.75678455]
[1736185110982,13.75678455,219.2,219.13,13.75678455]
[1736185111197,2.14,219.18,219.13,13.75678455]
[1736185112108,2.14,219.18,219.14,13.75678455]
[1736185113275,2.14,219.18,219.13,13.75678455]
[1736185113594,2.14,219.18,219.14,13.75678455]
[1736185114197,2.14,219.18,219.13,13.75678455]
[1736185115403,2.14,219.18,219.14,13.75678455]
[1736185115693,0.12549,219.18,219.14,13.75678455]
[1736185116115,0.12549,219.18,219.15,13.75678455]
[1736185116586,0.12549,219.18,219.14,13.75678455]
[1736185116918,31.80544945,235.66,219.16,13.75678455]
[1736185116919,20.07118455,219.23,219.16,13.75678455]
[1736185117084,2.14,219.22,219.17,13.75678455]
[1736185117285,0.12549,219.21,219.17,13.75678455]
[1736185117794,0.12549,219.21,219.14,33.75678455]
[1736185117984,0.12549,219.21,219.15,13.75678455]
[1736185118311,0.12549,219.21,219.16,13.75678455]
[1736185118899,13.88227455,219.21,219.14,33.75678455]
[1736185119102,0.12549,219.18,219.12,13.75678455]
[1736185119402,13.75678455,219.17,219.1,13.75678455]
[1736185119987,13.75678455,219.18,219.11,13.75678455]
[1736185120197,13.75678455,219.2,219.13,13.75678455]
[1736185120587,15.89678455,219.22,219.15,13.75678455]
[1736185120879,2.14,219.21,219.18,13.75678455]
[1736185121102,2.14,219.21,219.17,13.75678455]
[1736185121710,0.12549,219.23,219.17,13.75678455]
[1736185121912,2.26549,219.23,219.17,13.75678455]
[1736185123114,0.12549,219.22,219.17,8.79433185]
[1736185123324,0.12549,219.22,219.16,8.79433185]
[1736185123477,2.14,219.24,219.18,8.79433185]
[1736185123855,2.14,219.24,219.2,8.79433185]
[1736185125015,0.12549,219.23,219.17,8.79433185]
[1736185125214,8.91982185,219.23,219.16,8.79433185]
[1736185126288,0.12549,219.23,219.16,8.79433185]
[1736185126483,0.12549,219.23,219.15,8.79433185]
[1736185126484,8.91982185,219.23,219.15,8.79433185]
[1736185126789,2.14,219.24,219.15,8.79433185]
[1736185126790,8.79433185,219.22,219.15,8.79433185]
[1736185126996,8.79433185,219.21,219.14,8.79433185]
[1736185128520,8.79433185,219.22,219.15,8.79433185]
[1736185128916,8.79433185,219.21,219.15,8.79433185]
[1736185129105,8.79433185,219.22,219.15,8.79433185]
[1736185130432,0.12549,219.19,219.13,28.79433185]
[1736185130632,0.12549,219.19,219.14,8.79433185]
[1736185130812,0.12549,219.21,219.15,8.79433185]
[1736185131017,8.79433185,219.22,219.15,8.79433185]
[1736185131345,0.12549,219.21,219.15,8.79433185]
[1736185132717,29.04531185,219.23,219.16,8.79433185]
[1736185133212,20.25098,219.23,219.17,8.79433185]
[1736185133416,0.12549,219.21,219.17,8.79433185]
[1736185133614,0.12549,219.21,219.18,8.79433185]
[1736185134132,0.12549,219.21,219.12,46.5865274]
[1736185134133,0.12549,219.21,219.17,8.79433185]
[1736185134430,2.26549,219.23,219.17,8.79433185]
[1736185134829,8.79433185,219.22,219.15,28.79433185]
[1736185135031,8.79433185,219.22,219.15,20.0]
[1736185135214,8.79433185,219.22,219.15,28.79433185]
[1736185136631,8.79433185,219.21,219.1,6.5725]
[1736185136838,8.79433185,219.2,219.13,8.79433185]
[1736185137053,8.79433185,219.2,219.12,28.79433185]
[1736185137340,8.79433185,219.2,219.13,8.79433185]
[1736185137547,8.79433185,219.21,219.14,8.79433185]
[1736185137748,32.57121585,219.22,219.14,8.79433185]
[1736185138234,0.12549,219.21,219.15,8.79433185]
[1736185138859,32.57121585,219.22,219.15,8.79433185]
[1736185138860,2.14,219.23,219.15,8.79433185]
[1736185139010,2.14,219.23,219.16,8.79433185]
[1736185140341,0.25098,219.22,219.16,8.79433185]
[1736185141013,9.04531185,219.22,219.15,8.79433185]
[1736185141530,32.82219585,219.22,219.12,20.0]
[1736185141827,32.82219585,219.22,219.14,8.79433185]
[1736185142030,0.12549,219.2,219.14,8.79433185]
[1736185142523,0.12549,219.19,219.13,8.79433185]
[1736185142727,8.91982185,219.19,219.12,28.79433185]
[1736185143032,3.7415,219.23,219.13,8.79433185]
[1736185143033,8.79433185,219.2,219.13,8.79433185]
[1736185143238,0.12549,219.19,219.13,8.79433185]
[1736185143435,0.12549,219.19,219.14,8.79433185]
[1736185143643,0.12549,219.19,219.15,8.79433185]
[1736185143851,8.79433185,219.22,219.15,8.79433185]
[1736185145627,9.04531185,219.21,219.14,8.79433185]
[1736185145827,8.79433185,219.17,219.08,1.6094]
[1736185146035,9.04531185,219.15,219.07,8.79433185]
[1736185146230,0.25098,219.13,219.08,8.79433185]
[1736185146745,0.25098,219.13,219.07,8.79433185]
[1736185148032,9.04531185,219.13,219.06,8.79433185]
[1736185149341,41.237784,219.12,219.03,7.11028786]
[1736185149546,23.776884,219.05,219.03,7.11028786]
[1736185149729,25.916884,219.04,219.03,7.11028786]
[1736185150120,34.71121585,219.04,219.03,7.11028786]
[1736185151237,23.776884,219.04,219.03,7.11028786]
[1736185151434,34.71121585,219.04,219.03,7.11028786]
[1736185151629,25.916884,219.04,219.03,7.11028786]
[1736185151841,34.71121585,219.04,219.03,7.11028786]
[1736185152449,25.916884,219.04,219.03,7.11028786]
[1736185153132,26.167864,219.04,219.03,7.11028786]
[1736185153352,2.39098,219.04,219.03,7.11028786]
[1736185155051,0.25098,219.04,219.03,7.11028786]
[1736185155350,2.39098,219.04,219.03,7.11028786]
[1736185156726,26.167864,219.04,219.03,7.11028786]
[1736185157262,2.39098,219.04,219.03,7.11028786]
[1736185159582,26.167864,219.04,219.03,7.11028786]
[1736185159752,34.96219585,219.04,219.03,7.11028786]
[1736185161037,32.82219585,219.04,219.03,7.11028786]
[1736185161406,41.53179585,219.04,219.03,7.11028786]
[1736185161884,20.0,219.01,218.92,8.79433185]
[1736185162164,8.79433185,218.98,218.85,11.46505933]
[1736185162373,32.57121585,218.97,218.91,10.44483185]
[1736185162552,2.14,218.96,218.91,8.79433185]
[1736185163471,32.57121585,218.95,218.87,8.79433185]
[1736185163872,32.57121585,218.95,218.88,8.79433185]
[1736185164073,23.776884,218.95,218.88,8.79433185]
[1736185164281,32.57121585,218.95,218.86,1.5246]
[1736185164573,32.57121585,218.95,218.87,8.79433185]
[1736185164881,10.93433185,218.96,218.9,8.79433185]
[1736185165036,2.14,218.96,218.91,8.79433185]
[1736185165984,0.25098,218.95,218.91,8.79433185]
[1736185166156,0.25098,218.95,218.86,1.5246]
[1736185166157,0.25098,218.95,218.9,8.79433185]
[1736185166556,0.25098,218.95,218.89,8.79433185]
[1736185166743,32.82219585,218.95,218.86,1.5246]
[1736185166945,24.027864,218.95,218.89,8.79433185]
[1736185168173,31.1707144,218.99,218.93,8.79433185]
[1736185168377,31.1707144,218.99,218.9,46.5978274]
[1736185168674,0.12549,219.01,218.95,8.79433185]
[1736185168876,2.14,219.04,218.86,12.9471]
[1736185168877,0.25098,218.98,218.86,12.9471]
[1736185169101,0.25098,218.98,218.86,13.6322325]
[1736185169281,0.25098,218.98,218.92,8.79433185]
[1736185169458,8.79433185,218.97,218.9,8.79433185]
[1736185169654,10.93433185,218.96,218.9,8.79433185]
[1736185170054,10.93433185,218.96,218.89,8.79433185]
[1736185171960,23.776884,218.95,218.86,1.5246]
[1736185172195,23.776884,218.95,218.88,8.79433185]
[1736185172372,2.14,218.95,218.9,8.79433185]
[1736185172571,2.14,218.95,218.91,8.79433185]
[1736185173103,42.58057502,219.02,218.86,1.5246]
[1736185173104,2.14,218.96,218.94,18.79433185]
[1736185173301,31.16617502,219.02,218.95,8.79433185]
[1736185173465,33.30617502,219.02,218.94,10.0]
[1736185173674,0.12549,218.99,218.94,10.0]
[1736185173893,9.04531185,219.0,218.94,18.79433185]
[1736185174400,0.12549,218.98,218.94,10.0]
[1736185174801,23.776884,219.01,218.94,10.0]
[1736185174978,32.57121585,219.01,218.94,18.79433185]
[1736185175490,0.12549,219.0,218.94,18.79433185]
[1736185175701,0.12549,219.0,218.95,8.79433185]
[1736185175902,0.25098,219.0,218.95,8.79433185]
[1736185176196,2.14,218.99,218.95,8.79433185]
[1736185176598,0.12549,218.98,218.95,8.79433185]
[1736185176992,0.12549,218.98,218.94,18.79433185]
[1736185177165,0.12549,218.98,218.94,10.0]
[1736185177784,8.79433185,218.97,218.94,10.0]
[1736185177986,8.79433185,218.96,218.94,10.0]
[1736185178297,8.79433185,218.97,218.94,10.0]
[1736185178497,32.57121585,218.95,218.94,10.0]
[1736185178870,8.79433185,218.95,218.94,10.0]
[1736185179068,8.79433185,218.96,218.94,10.0]
[1736185179278,8.79433185,218.97,218.94,10.0]
[1736185179488,20.0,218.98,218.94,10.0]
[1736185179862,23.776884,218.97,218.94,10.0]
[1736185180396,32.57121585,218.97,218.94,10.0]
[1736185180608,23.776884,218.98,218.94,10.0]
[1736185181702,0.25098,218.97,218.94,10.0]
[1736185183503,22.14,218.99,218.94,18.79433185]
[1736185183798,2.14,218.98,218.94,18.79433185]
[1736185184027,9.04531185,218.95,218.94,10.0]
[1736185184682,44.027864,218.95,218.94,10.0]
[1736185184914,20.25098,218.95,218.94,10.0]
[1736185185219,24.027864,218.95,218.94,10.0]
[1736185185827,0.25098,218.95,218.94,10.0]
[1736185186183,9.04531185,218.95,218.94,10.0]
[1736185186491,64.00397913,218.95,218.94,10.0]
[1736185187186,55.20964728,218.95,218.94,10.0]
[1736185187419,64.00397913,218.95,218.94,10.0]
[1736185191313,39.97611513,218.95,218.88,8.79433185]
[1736185191516,20.0,218.92,218.88,8.79433185]
[1736185191922,20.0,218.92,218.89,8.79433185]
[1736185192348,20.0,218.92,218.88,8.79433185]
[1736185192649,20.0,218.92,218.88,7.29433185]
[1736185193343,20.0,218.91,218.85,0.04225933]
[1736185193506,8.79433185,218.86,218.85,0.04225933]
[1736185193710,8.79433185,218.87,218.85,0.04225933]
[1736185194016,20.0,218.86,218.85,0.04225933]
[1736185194733,3.24,218.89,218.85,0.04225933]
[1736185194910,3.24,218.89,218.85,8.83659118]
[1736185195114,0.12549,218.88,218.85,0.04225933]
[1736185195521,3.24,218.91,218.85,8.83659118]
[1736185195718,23.24,218.91,218.87,8.79433185]
[1736185196152,20.12549,218.9,218.85,10.44029118]
[1736185197018,20.12549,218.9,218.86,8.79433185]
[1736185197453,8.79433185,218.87,218.85,0.04225933]
[1736185197612,0.12549,218.87,218.85,0.04225933]
[1736185197813,0.12549,218.88,218.85,0.04225933]
[1736185198107,20.12549,218.88,218.85,8.83659118]
[1736185198622,20.12549,218.9,218.85,8.83659118]
[1736185199038,0.12549,218.89,218.85,8.83659118]
[1736185199255,0.12549,218.89,218.85,0.04225933]
[1736185199548,20.0,218.88,218.85,0.04225933]
[1736185199738,9.04531185,218.9,218.85,0.04225933]
[1736185200818,20.0,218.88,218.85,0.04225933]
[1736185201818,20.0,218.89,218.86,8.79433185]
[1736185202410,20.0,218.9,218.85,8.83659118]
[1736185202820,20.0,218.9,218.86,8.79433185]
[1736185203021,20.0,218.9,218.85,0.04225933]
[1736185203222,20.0,218.9,218.85,8.83659118]
[1736185203418,28.91982185,218.92,218.85,8.83659118]
[1736185204065,20.0,218.88,218.85,0.04225933]
[1736185204267,8.91982185,218.9,218.85,0.04225933]
[1736185204549,8.91982185,218.89,218.85,0.04225933]
[1736185204722,0.12549,218.91,218.88,8.79433185]
[1736185204919,11.4158,219.0,218.88,8.79433185]
[1736185205139,8.79433185,218.96,218.88,8.79433185]
[1736185205351,0.12549,218.94,218.88,8.29433185]
[1736185205556,9.04531185,218.94,218.87,8.79433185]
[1736185205726,8.91982185,218.92,218.85,8.83659118]
[1736185205936,0.12549,218.91,218.85,8.83659118]
[1736185206238,0.12549,218.91,218.85,0.04225933]
[1736185206470,31.18178328,218.95,218.85,0.04225933]
[1736185206471,8.91982185,218.9,218.85,0.04225933]
[1736185206661,0.12549,218.87,218.85,0.04225933]
[1736185207259,0.12549,218.88,218.85,0.04225933]
[1736185207462,8.91982185,218.88,218.85,0.04225933]
[1736185208255,8.79433185,218.86,218.85,0.04225933]
[1736185208759,32.57121585,218.86,218.85,0.04225933]
[1736185210281,32.69670585,218.86,218.85,0.04225933]
[1736185212562,37.82219585,218.86,218.85,5.933e-05]
[1736185212763,20.0,218.78,218.73,1.5229]
[1736185212979,0.25098,218.75,218.73,1.5229]
[1736185213350,9.04531185,218.75,218.68,26.14171105]
[1736185213559,0.25098,218.73,218.68,34.9360429]
[1736185214004,8.91982185,218.7,218.68,24.56281105]
[1736185214283,23.902374,218.63,218.56,25.41971586]
[1736185214492,5.0,218.65,218.56,7.11028786]
[1736185214652,20.0,218.57,218.56,7.11028786]
[1736185214849,20.12549,218.57,218.56,7.11028786]
[1736185215167,28.91982185,218.57,218.56,7.11028786]
[1736185215365,4.52528193,218.68,218.56,7.11028786]
[1736185215366,12.51433185,218.63,218.56,7.11028786]
[1736185215578,12.51433185,218.63,218.55,8.79433185]
[1736185215579,8.79433185,218.62,218.55,8.79433185]